lending/lending_fUSD_20250316
["ID","MTS","AMOUNT","RATE_DAILY","PERIOD"]
[356259114,1742148652229,-217.941654,0.00046782,14]
[356259115,1742148652238,-248.990661,0.00046782,14]
[356259116,1742148652249,-151.0,0.00046782,14]
[356259117,1742148652258,-151.0,0.00046782,14]
[356259118,1742148652267,-1045.173966,0.00046782,14]
[356259119,1742148652276,-1045.173966,0.00046782,14]
[356259120,1742148652285,-204.858887,0.00046782,14]
[356259121,1742148652295,-204.858887,0.00046782,14]
[356259122,1742148652304,-372.150392,0.00046782,14]
[356259123,1742148652313,-151.0,0.00046782,14]
[356259124,1742148652321,-372.150392,0.00046782,14]
[356259125,1742148652330,-151.0,0.00046782,14]
[356259126,1742148652339,-328.069641,0.00046782,14]
[356259127,1742148652348,-328.069641,0.00046782,14]
[356259128,1742148652361,-50000.0,0.00046783,3]
[356259129,1742148652370,-300.0,0.00046784,30]
[356259130,1742148652380,-300.0,0.00046784,30]
[356259131,1742148652389,-300.0,0.00046784,30]
[356259132,1742148652398,-300.0,0.00046784,30]
[356259133,1742148652409,-300.0,0.00046784,30]
[356259134,1742148652418,-300.0,0.00046784,30]
[356259135,1742148652427,-300.0,0.00046784,30]
[356259136,1742148652437,-358.9118484,0.00046784,120]
[356259137,1742148652447,-881.64,0.00046784,120]
[356259138,1742148652456,-150.0,0.00046784,30]
[356259139,1742148652465,-162.70196799,0.00046784,22]
[356259140,1742148652475,-300.0,0.00046785,30]
[356259141,1742148652484,-300.0,0.00046785,30]
[356259142,1742148652494,-300.0,0.00046785,30]
[356259143,1742148652503,-300.0,0.00046785,30]
[356259144,1742148652513,-300.0,0.00046785,30]
[356259145,1742148652522,-60000.0,0.00046785,2]
[356259146,1742148652531,-193.736659,0.00046785,14]
[356259147,1742148652540,-155.667384,0.00046785,14]
[356259148,1742148652550,-202.466858,0.00046785,14]
[356259149,1742148652559,-202.466858,0.00046785,14]
[356259150,1742148652568,-500.0,0.00046785,120]
[356259151,1742148652577,-998.42,0.00046785,120]
[356259152,1742148652587,-500.0,0.00046785,120]
[356259153,1742148652596,-500.0,0.00046785,120]
[356259154,1742148652605,-64738.0,0.00046786,2]
[356259155,1742148652615,-151.0,0.00046786,14]
[356259156,1742148652624,-151.0,0.00046786,14]
[356259157,1742148652632,-151.0,0.00046786,14]
[356259158,1742148652642,-151.0,0.00046786,14]
[356259159,1742148652651,-151.0,0.00046786,14]
[356259160,1742148652660,-151.0,0.00046786,14]
[356259161,1742148652669,-1000.0,0.00046786,14]
[356259162,1742148652679,-1761.053126,0.00046786,14]
[356259163,1742148652689,-217.941654,0.00046786,14]
[356259164,1742148652698,-1761.053126,0.00046786,14]
[356259165,1742148652707,-217.941654,0.00046786,14]
[356259166,1742148652716,-151.0,0.00046786,14]
[356259167,1742148652725,-151.0,0.00046786,14]
[356259168,1742148652734,-1045.173966,0.00046786,14]
[356259169,1742148652745,-1045.173966,0.00046786,14]
[356259170,1742148652754,-204.858887,0.00046786,14]
[356259171,1742148652763,-204.858887,0.00046786,14]
[356259172,1742148652773,-372.150392,0.00046786,14]
[356259173,1742148652783,-151.0,0.00046786,14]
[356259174,1742148652792,-372.150392,0.00046786,14]
[356259175,1742148652801,-151.0,0.00046786,14]
[356259176,1742148652810,-328.069641,0.00046786,14]
[356259177,1742148652819,-328.069641,0.00046786,14]
[356259178,1742148652829,-150.0,0.00046792,7]
[356259179,1742148652838,-2000.0,0.00046805,4]
[356259180,1742148652847,-600.0,0.00046808,120]
[356259181,1742148652856,-150.0,0.00046815,30]
[356259182,1742148652866,-150.0,0.00046817,7]
[356259183,1742148652875,-2555.18,0.00046821,7]
[356259184,1742148652884,-31011.0,0.0004683,10]
[356259185,1742148652893,-1000.0,0.00046832,14]
[356259186,1742148652902,-1000.0,0.00046835,14]
[356259187,1742148652912,-150.0,0.00046838,30]
[356259188,1742148652921,-150.0,0.00046841,7]
[356259189,1742148652930,-150.0,0.00046846,30]
[356259190,1742148652939,-150.0,0.00046851,7]
[356259191,1742148652949,-150.0,0.00046856,7]
[356259192,1742148652958,-150.0,0.0004687,30]
[356259193,1742148652967,-1000.0,0.00046877,14]
[356259194,1742148652976,-150.0,0.00046878,30]
[356259195,1742148652986,-150.0,0.00046879,7]
[356259196,1742148652996,-150.0,0.0004688,7]
[356259197,1742148653005,-150.0,0.00046886,7]
[356259198,1742148653014,-150.0,0.00046892,7]
[356259199,1742148653024,-150.0,0.00046895,7]
[356259200,1742148653033,-1000.0,0.000469,120]
[356259201,1742148653042,-442.16545266,0.000469,25]
[356259202,1742148653051,-150.0,0.00046902,7]
[356259203,1742148653060,-150.0,0.00046909,30]
[356259204,1742148653069,-200.0,0.00046913,7]
[356259205,1742148653078,-200.0,0.00046913,7]
[356259206,1742148653089,-200.0,0.00046913,7]
[356259207,1742148653098,-200.0,0.00046913,7]
[356259208,1742148653107,-209.0,0.0004692,30]
[356259209,1742148653116,-213.0,0.0004692,30]
[356259210,1742148653126,-150.0,0.00046924,30]
[356259211,1742148653135,-150.0,0.0004694,30]
[356259212,1742148653145,-1000.0,0.00046946,14]
[356259213,1742148653155,-150.0,0.00046946,7]
[356259214,1742148653165,-150.0,0.00046957,7]
[356259215,1742148653174,-150.0,0.00046964,7]
[356259216,1742148653184,-150.0,0.00046968,7]
[356259217,1742148653193,-150.0,0.00046971,30]
[356259218,1742148653202,-1000.0,0.00046976,14]
[356259219,1742148653212,-150.0,0.00046979,7]
[356259220,1742148653222,-150.0,0.00046982,30]
[356259221,1742148653232,-150.0,0.00046982,30]
[356259222,1742148653242,-592.98789816,0.00046988,14]
[356259223,1742148653253,-63091.96854455,0.0004699,2]
[356259224,1742148653263,-155.667384,0.0004699,14]
[356259225,1742148653273,-155.667389,0.0004699,14]
[356259226,1742148653282,-202.466858,0.0004699,14]
[356259227,1742148653292,-202.466851,0.0004699,14]
[356259228,1742148653302,-500.0,0.00046999,120]
[356259229,1742148653311,-998.42,0.00046999,120]
[356259230,1742148653320,-247.0,0.00046999,120]
[356259231,1742148653330,-881.64,0.00046999,120]
[356259232,1742148653339,-50000.0,0.00047,37]
[356259233,1742148653349,-5909.16,0.00047,14]
[356259234,1742148653363,-17511.80957141,0.00047,120]
[356259235,1742148653373,-14065.5616908,0.00047,120]
[356259236,1742148653382,-2000.0,0.00047,120]
[356259237,1742148653392,-151.0,0.00047,14]
[356259238,1742148653403,-151.0,0.00047,14]
[356259239,1742148653414,-151.0,0.00047,14]
[356259240,1742148653424,-151.0,0.00047,14]
[356259241,1742148653435,-151.0,0.00047,14]
[356259242,1742148653444,-151.0,0.00047,14]
[356259243,1742148653454,-1761.053126,0.00047,14]
[356259244,1742148653464,-217.941654,0.00047,14]
[356259245,1742148653474,-1761.053126,0.00047,14]
[356259246,1742148653483,-217.941654,0.00047,14]
[356259247,1742148653492,-151.0,0.00047,14]
[356259248,1742148653505,-151.0,0.00047,14]
[356259249,1742148653515,-1045.173966,0.00047,14]
[356259250,1742148653524,-1045.173966,0.00047,14]
[356259251,1742148653535,-204.858887,0.00047,14]
[356259252,1742148653545,-204.858879,0.00047,14]
[356259253,1742148653554,-372.150392,0.00047,14]
[356259254,1742148653564,-218.66204,0.00047,14]
[356259255,1742148653573,-372.150388,0.00047,14]
[356259256,1742148653583,-328.069641,0.00047,14]
[356259257,1742148653593,-328.069641,0.00047,14]
[356259258,1742148653603,-150.0,0.00047003,30]
[356259259,1742148653613,-150.0,0.0004701,7]
[356259260,1742148653623,-150.0,0.00047011,30]
[356259261,1742148653632,-150.0,0.00047021,7]
[356259262,1742148653642,-150.0,0.0004703,7]
[356259263,1742148653651,-150.0,0.00047034,30]
[356259264,1742148653660,-323.77,0.00047047,2]
[356259265,1742148653670,-1000.0,0.00047048,14]
[356259266,1742148653679,-150.0,0.00047065,30]
[356259267,1742148653689,-1000.0,0.00047066,14]
[356259268,1742148653698,-150.0,0.00047073,7]
[356259269,1742148653707,-162.70196799,0.00047092,22]
[356259270,1742148653717,-150.0,0.00047094,30]
[356259271,1742148653727,-2555.18,0.00047095,7]
[356259272,1742148653737,-500.0,0.00047095,120]
[356259273,1742148653747,-150.0,0.00047096,30]
[356259274,1742148653757,-1000.0,0.00047097,14]
[356259275,1742148653766,-150.0,0.00047097,7]
[356259276,1742148653776,-150.0,0.00047097,30]
[356259277,1742148653786,-150.0,0.000471,120]
[356259278,1742148653795,-150.0,0.00047106,7]
[356259279,1742148653805,-150.0,0.00047117,7]
[356259280,1742148653815,-156.454995,0.00047125,30]
[356259281,1742148653824,-150.0,0.00047127,30]
[356259282,1742148653834,-150.0,0.00047138,7]
[356259283,1742148653844,-150.0,0.0004714,7]
[356259284,1742148653854,-442.16545266,0.0004715,26]
[356259285,1742148653864,-1906.76,0.00047155,2]
[356259286,1742148653881,-150.0,0.00047157,7]
[356259287,1742148653891,-150.0,0.00047159,30]
[356259288,1742148653901,-1000.0,0.0004716,14]
[356259289,1742148653911,-150.0,0.00047184,30]
[356259290,1742148653920,-150.0,0.0004719,30]
[356259291,1742148653930,-150.0,0.00047191,7]
[356259292,1742148653940,-150.0,0.00047198,7]
[356259293,1742148653950,-2000.0,0.000472,120]
[356259294,1742148653960,-2000.0,0.00047205,4]
[356259295,1742148653970,-150.0,0.00047206,30]
[356259296,1742148653981,-150.0,0.00047215,7]
[356259297,1742148653990,-150.0,0.00047221,30]
[356259298,1742148653999,-150.0,0.00047234,30]
[356259299,1742148654009,-150.0,0.00047244,7]
[356259300,1742148654018,-150.0,0.00047252,30]
[356259301,1742148654029,-1000.0,0.00047255,14]
[356259302,1742148654039,-500.0,0.00047264,120]
[356259303,1742148654048,-500.0,0.00047265,7]
[356259304,1742148654058,-271.97931079,0.00047265,7]
[356259305,1742148654068,-150.0,0.00047265,7]
[356259306,1742148654077,-500.0,0.00047265,7]
[356259307,1742148654087,-500.0,0.00047265,7]
[356259308,1742148654096,-150.0,0.00047265,7]
[356259309,1742148654106,-150.0,0.00047265,2]
[356259310,1742148654115,-238.4467814,0.00047265,2]
[356259311,1742148654125,-500.0,0.00047265,7]
[356259312,1742148654134,-150.0,0.0004727,30]
[356259313,1742148654145,-150.0,0.00047271,7]
[356259314,1742148654155,-150.0,0.00047272,7]
[356259315,1742148654164,-150.0,0.00047283,30]
[356259316,1742148654175,-501.06225465,0.00047292,7]
[356259317,1742148654184,-150.0,0.00047292,7]
[356259318,1742148654194,-500.99165857,0.00047292,7]
[356259319,1742148654204,-500.0,0.00047292,7]
[356259320,1742148654214,-150.0,0.00047292,7]
[356259321,1742148654224,-922.68742477,0.00047292,7]
[356259322,1742148654234,-150.0,0.00047297,7]
[356259323,1742148654243,-150.0,0.00047315,30]
[356259324,1742148654254,-150.0,0.00047318,30]
[356259325,1742148654265,-207.05981788,0.0004732,7]
[356259326,1742148654275,-500.0,0.0004732,7]
[356259327,1742148654284,-253.14183214,0.0004732,7]
[356259328,1742148654294,-1000.0,0.00047325,14]
[356259329,1742148654304,-150.0,0.00047326,7]
[356259330,1742148654314,-1000.0,0.00047328,14]
[356259331,1742148654323,-1000.0,0.0004733,14]
[356259332,1742148654333,-150.0,0.00047331,7]
[356259333,1742148654344,-150.0,0.00047332,7]
[356259334,1742148654359,-150.0,0.00047333,7]
[356259335,1742148654369,-779.41,0.00047342,30]
[356259336,1742148654378,-1000.0,0.00047343,14]
[356259337,1742148654388,-150.0,0.00047346,30]
[356259338,1742148654399,-500.0,0.00047347,7]
[356259339,1742148654409,-1064.0,0.00047352,30]
[356259340,1742148654419,-150.0,0.00047357,30]
[356259341,1742148654428,-150.0,0.00047357,7]
[356259342,1742148654439,-2555.18,0.00047369,7]
[356259343,1742148654449,-150.0,0.00047369,120]
[356259344,1742148654460,-500.0,0.00047375,7]
[356259345,1742148654470,-150.0,0.00047377,30]
[356259346,1742148654480,-1000.0,0.0004738,14]
[356259347,1742148654490,-200.0,0.00047383,7]
[356259348,1742148654501,-200.0,0.00047383,7]
[356259349,1742148654512,-200.0,0.00047383,7]
[356259350,1742148654523,-154.91361423,0.00047398,14]
[356259351,1742148654533,-150.0,0.00047399,7]
[356259352,1742148654543,-30000.00000003,0.000474,30]
[356259353,1742148654553,-163.62795576,0.000474,120]
[356259354,1742148654564,-163.62795576,0.000474,120]
[356259355,1742148654573,-163.62795576,0.000474,120]
[356259356,1742148654583,-163.62795576,0.000474,120]
[356259357,1742148654593,-163.62,0.000474,120]
[356259358,1742148654603,-159.08273477,0.000474,120]
[356259359,1742148654613,-159.08273477,0.000474,120]
[356259360,1742148654623,-159.08273477,0.000474,120]
[356259361,1742148654632,-159.08273477,0.000474,120]
[356259362,1742148654643,-159.08273477,0.000474,120]
[356259363,1742148654653,-159.08273477,0.000474,120]
[356259364,1742148654662,-159.08273477,0.000474,120]
[356259365,1742148654672,-159.08273477,0.000474,120]
[356259366,1742148654682,-159.08273477,0.000474,120]
[356259367,1742148654692,-159.08273477,0.000474,120]
[356259368,1742148654703,-159.08273477,0.000474,120]
[356259369,1742148654713,-159.08,0.000474,120]
[356259370,1742148654723,-3512.89523831,0.000474,14]
[356259371,1742148654734,-350.168,0.000474,70]
[356259372,1742148654744,-442.16545266,0.000474,27]
[356259373,1742148654755,-150.0,0.000474,7]
[356259374,1742148654765,-37524.69578822,0.000474,15]
[356259375,1742148654775,-171.37367046,0.000474,9]
[356259376,1742148654784,-1913.22340563,0.000474,2]
[356259377,1742148654795,-162.70196799,0.000474,23]
[356259378,1742148654806,-500.0,0.00047402,7]
[356259379,1742148654816,-150.0,0.00047404,7]
[356259380,1742148654826,-150.0,0.00047405,7]
[356259381,1742148654836,-150.0,0.00047407,7]
[356259382,1742148654849,-150.0,0.00047408,30]
[356259383,1742148654858,-1000.0,0.00047428,14]
[356259384,1742148654868,-191.39283,0.00047429,14]
[356259385,1742148654878,-151.0,0.00047429,14]
[356259386,1742148654889,-984.88866116,0.00047429,7]
[356259387,1742148654900,-150.0,0.0004743,30]
[356259388,1742148654910,-1000.0,0.00047439,14]
[356259389,1742148654920,-150.0,0.00047439,30]
[356259390,1742148654930,-150.0,0.00047442,7]
[356259391,1742148654940,-150.0,0.00047443,30]
[356259392,1742148654949,-1000.0,0.00047458,14]
[356259393,1742148654960,-881.64,0.00047466,120]
[356259394,1742148654969,-151.0,0.00047467,14]
[356259395,1742148654980,-151.0,0.00047467,14]
[356259396,1742148654990,-151.0,0.00047467,14]
[356259397,1742148655000,-228.873354,0.00047467,14]
[356259398,1742148655010,-1761.053126,0.00047467,14]
[356259399,1742148655020,-217.941654,0.00047467,14]
[356259400,1742148655031,-1761.053126,0.00047467,14]
[356259401,1742148655040,-217.941648,0.00047467,14]
[356259402,1742148655051,-610.4749812,0.00047467,2]
[356259403,1742148655061,-503.2731282,0.00047467,2]
[356259404,1742148655071,-396.0712753,0.00047467,2]
[356259405,1742148655081,-6276.57641,0.00047467,2]
[356259406,1742148655090,-5174.3844417,0.00047467,2]
[356259407,1742148655100,-4072.1924734,0.00047467,2]
[356259408,1742148655110,-1045.173966,0.00047467,14]
[356259409,1742148655119,-1045.173973,0.00047467,14]
[356259410,1742148655129,-1574.5162554,0.00047467,2]
[356259411,1742148655138,-1884.5246373,0.00047467,2]
[356259412,1742148655150,-2194.5330193,0.00047467,2]
[356259413,1742148655160,-2056.0520279,0.00047467,2]
[356259414,1742148655170,-2460.8705619,0.00047467,2]
[356259415,1742148655179,-2865.6890959,0.00047467,2]
[356259416,1742148655189,-4949.0062755,0.00047467,2]
[356259417,1742148655199,-5923.4220188,0.00047467,2]
[356259418,1742148655208,-6897.8377622,0.00047467,2]
[356259419,1742148655218,-1196.3012266,0.00047467,2]
[356259420,1742148655229,-1431.8424008,0.00047467,2]
[356259421,1742148655239,-1667.3835749,0.00047467,2]
[356259422,1742148655250,-1925.7874074,0.00047467,2]
[356259423,1742148655259,-2323.2521735,0.00047467,2]
[356259424,1742148655270,-2720.7169396,0.00047467,2]
[356259425,1742148655279,-150.0,0.00047471,30]
[356259426,1742148655289,-150.0,0.00047472,7]
[356259427,1742148655298,-150.0,0.00047478,7]
[356259428,1742148655309,-150.0,0.00047486,30]
[356259429,1742148655319,-5853.14562356,0.0004749,7]
[356259430,1742148655328,-500.0,0.00047498,120]
[356259431,1742148655338,-998.42,0.00047498,120]
[356259432,1742148655348,-500.0,0.00047498,120]
[356259433,1742148655361,-42072.02,0.00047499,120]
[356259434,1742148655370,-1300.0,0.00047499,120]
[356259435,1742148655380,-10096.0,0.00047499,90]
[356259436,1742148655389,-500.0,0.00047499,120]
[356259437,1742148655399,-500.0,0.00047499,120]
[356259438,1742148655408,-275.04991312,0.00047499,120]
[356259439,1742148655418,-998.42,0.00047499,120]
[356259440,1742148655427,-998.42,0.00047499,120]
[356259441,1742148655438,-998.42,0.00047499,120]
[356259442,1742148655448,-998.42,0.00047499,120]
[356259443,1742148655458,-998.42,0.00047499,120]
[356259444,1742148655467,-998.64751905,0.00047499,120]
[356259445,1742148655478,-881.64,0.00047499,120]
[356259446,1742148655487,-881.64,0.00047499,120]
[356259447,1742148655497,-881.64,0.00047499,120]
[356259448,1742148655508,-881.64,0.00047499,120]
[356259449,1742148655518,-881.84398606,0.00047499,120]
[356259450,1742148655529,-500.0,0.00047499,120]
[356259451,1742148655539,-500.0,0.00047499,120]
[356259452,1742148655549,-500.0,0.00047499,120]
[356259453,1742148655559,-500.0,0.00047499,120]
[356259454,1742148655569,-220.86794708,0.00047499,120]
[356259455,1742148655579,-242.08729418,0.000475,2]
[356259456,1742148655589,-242.08729417,0.000475,2]
[356259457,1742148655598,-206.18704135,0.000475,120]
[356259458,1742148655608,-9997588.61728092,0.000475,2]
[356259459,1742148655687,-395.395,0.000475,2]
[356259460,1742148655699,-1438.0047324,0.000475,2]
[356259461,1742148655713,-1193.5808724,0.000475,2]
[356259462,1742148655725,-474.84500003,0.000475,2]
[356259463,1742148655801,-500.0,0.00043835,120]
[356259464,1742148655811,-500.0,0.00043835,2]
[356259465,1742148655822,-500.0,0.00043835,120]
[356259466,1742148655832,-78.42685,0.00043835,120]
[356259467,1742148657616,-421.57315,0.00043835,120]
[356259468,1742148657626,-500.0,0.0004441,120]
[356259469,1742148657636,-500.0,0.00045163,120]
[356259470,1742148657645,-500.0,0.00045889,120]
[356259471,1742148657655,-500.0,0.00045997,120]
[356259472,1742148657665,-500.0,0.00045999,120]
[356259473,1742148657675,-75.98335525,0.00045999,120]
[356259474,1742148657691,-424.01664475,0.00045999,120]
[356259475,1742148657702,-289.32763927,0.00045999,120]
[356259476,1742148657713,-210.67236073,0.00045999,120]
[356259477,1742148657722,-150.0,0.00046783,7]
[356259478,1742148657732,-150.0,0.00047261,7]
[356259479,1742148657743,-1092.25483927,0.000475,2]
[356259480,1742148657757,-9536.91926704,0.000475,2]
[356259481,1742148657769,-4430.0000001,0.000475,2]
[356259482,1742148657780,-1422.01714804,0.000475,2]
[356259483,1742148657791,-1794.14245454,0.000475,2]
[356259484,1742148657802,-27868.39352695,0.000475,2]
[356259485,1742148657942,-150.0,0.00045026,2]
[356259486,1742148657952,-150.0,0.00045431,2]
[356259487,1742148657962,-150.0,0.00045512,2]
[356259488,1742148657971,-153.0,0.00045627,2]
[356259489,1742148657981,-153.0,0.00045627,2]
[356259490,1742148657991,-153.0,0.00045627,2]
[356259491,1742148658000,-153.0,0.00045627,2]
[356259492,1742148658013,-153.0,0.00045627,2]
[356259493,1742148658023,-153.0,0.00045627,2]
[356259494,1742148658033,-150.0,0.00045755,2]
[356259495,1742148658042,-150.0,0.00045855,2]
[356259496,1742148658052,-500.0,0.00045999,120]
[356259497,1742148658061,-500.0,0.00045999,120]
[356259498,1742148658070,-500.0,0.00045999,120]
[356259499,1742148658079,-500.0,0.00045999,120]
[356259500,1742148658088,-231.99999107,0.00045999,120]
[356259501,1742148658099,-268.00000893,0.00045999,120]
[356259502,1742148658109,-150.0,0.00046171,2]
[356259503,1742148658119,-500.0,0.00046198,120]
[356259504,1742148658128,-150.0,0.00046216,2]
[356259505,1742148658138,-150.0,0.00046311,2]
[356259506,1742148658147,-150.0,0.00046361,2]
[356259507,1742148658156,-255.9158358,0.0004665,2]
[356259508,1742148658165,-500.0,0.00046779,120]
[356259509,1742148658174,-500.0,0.00046785,120]
[356259510,1742148658206,-500.0,0.00046999,120]
[356259511,1742148658216,-150.0,0.00047084,7]
[356259512,1742148658224,-150.0,0.0004727,7]
[356259513,1742148658235,-500.0,0.00047497,120]
[356259514,1742148658244,-324.37493075,0.00047497,120]
[356259515,1742148658263,-175.62506925,0.00047497,120]
[356259516,1742148658272,-500.0,0.00047497,120]
[356259517,1742148658282,-91024.37493075,0.000475,2]
[356259518,1742148658294,-672.3,0.000475,2]
[356259519,1742148658305,-1260.2911538,0.000475,2]
[356259520,1742148658322,-358.49499995,0.00047497,120]
[356259526,1742149509005,1853869.94958273,0.0001,2]
[356259527,1742149509042,10000.0,0.0001,2]
[356259528,1742149509074,100000.0,0.0001,2]
[356259529,1742149509105,100000.0,0.0001,2]
[356259530,1742149509135,100000.0,0.0001,2]
[356259531,1742149509668,-189.64102603,0.0001,2]
[356259532,1742149527425,-204.6445,0.0001,2]
[356259533,1742149544832,-157.33,0.0001,2]
[356259548,1742149789068,164.47,9.7e-05,2]
[356259559,1742149831694,-150.0,9.999e-05,2]
[356259560,1742149831704,-300.0,9.999e-05,2]
[356259561,1742149831713,-273.53013871,9.999e-05,2]
[356259562,1742149831725,-226.46986129,9.999e-05,2]
[356259563,1742149831736,-228.81330047,9.999e-05,2]
[356259564,1742149831746,-149.23765711,0.0001,2]
[356259565,1742149831761,-1133.55417094,0.0001,2]
[356259566,1742149831810,-892.94977,0.0001,2]
[356259567,1742149831866,-293.39163012,0.0001,2]
[356259568,1742149831878,-4922.23199825,0.0001,2]
[356259569,1742149831923,-1075.9549519,0.0001,2]
[356259570,1742149831981,-633.91710109,0.0001,2]
[356259571,1742149831992,-1261043.67285831,0.0001,2]
[356259572,1742149832038,-5827.64511674,0.0001,2]
[356259573,1742149832049,-555.14206772,0.0001,2]
[356259623,1742149837692,-10899.05273941,0.0001,2]
[356259624,1742149837754,-437.74276958,0.0001,2]
[356259625,1742149837766,-492.04005655,0.0001,2]
[356259626,1742149837778,-2875.82,0.0001,2]
[356259627,1742149837790,-2286.86149131,0.0001,2]
[356259628,1742149837814,-299.10333342,0.0001,2]
[356259629,1742149837826,-8795.0,0.0001,2]
[356259630,1742149837840,-1921.45432012,0.0001,2]
[356259631,1742149837852,-17256.3355125,0.0001,2]
[356259632,1742149837875,-2805.9415654,0.0001,2]
[356259633,1742149837887,-132468.46067536,0.0001,2]
[356259634,1742149837898,-2124.41,0.0001,2]
[356259635,1742149837910,-1004.57485244,0.0001,2]
[356259636,1742149837922,-740.79258,0.0001,2]
[356259637,1742149837945,-482.44589076,0.0001,2]
[356259665,1742149839822,-616.92,0.0001,2]
[356259678,1742149839934,-1920.0,0.0001,2]
[356259685,1742149839993,-117063.72196779,0.0001,2]
[356259692,1742149840049,-519.99999999,0.0001,2]
[356259699,1742149840105,-2000.98743597,0.0001,2]
[356259701,1742149840117,-2041.41284595,0.0001,2]
[356259713,1742149840216,-4875.745,0.0001,2]
[356259723,1742149840331,-394.3849896,0.0001,2]
[356259725,1742149840342,-919.40116331,0.0001,2]
[356259727,1742149840354,-1125.38771573,0.0001,2]
[356259789,1742149840981,-154.47261532,0.0001,2]
[356259815,1742149842811,-596.13,0.0001,2]
[356259818,1742149842825,-258.4,0.0001,2]
[356259819,1742149842838,-9304.00572973,0.0001,2]
[356259820,1742149842850,-33416.039998,0.0001,2]
[356259821,1742149842862,-143074.29811969,0.0001,2]
[356259822,1742149842873,-210278.24209818,0.0001,2]
[356259823,1742149842885,-2204.70530562,0.0001,2]
[356259824,1742149842924,-5498.14470342,0.0001,2]
[356259825,1742149842937,-1300.19035097,0.0001,2]
[356259826,1742149842949,-16711.99245288,0.0001,2]
[356259827,1742149842986,-817.1986,0.0001,2]
[356259925,1742149844712,-1608.32193682,0.0001,2]
[356259926,1742149844724,-826.79727951,0.0001,2]
[356259927,1742149844735,-6076.0,0.0001,2]
[356259928,1742149844751,-6373.00058143,0.0001,2]
[356259929,1742149844797,-150.0,0.0001,2]
[356259930,1742149845949,-1444.89300382,0.0001,2]
[356259931,1742149846060,-313.45516705,0.0001,2]
[356259933,1742149846071,-1262.038983,0.0001,2]
[356259989,1742149846534,-159.71,0.0001,2]
[356260222,1742150312075,508.59680454,9.8e-05,2]
[356260223,1742150312102,1186.78219546,9.8e-05,2]
[356260224,1742150312137,174.389,9.8e-05,2]
[356260239,1742151031914,-374.252,9.999e-05,2]
[356260240,1742151032169,-923.95,9.999e-05,2]
[356260241,1742151032249,-550.0,9.999e-05,2]
[356260242,1742151032261,-172.278,9.999e-05,2]
[356260243,1742151032271,-300.0,9.999e-05,2]
[356260244,1742151032281,-150.0,9.999e-05,2]
[356260245,1742151032290,-94.13333905,9.999e-05,2]
[356260246,1742151032302,-405.86666095,9.999e-05,2]
[356260247,1742151032311,-93.91629782,0.0001,2]
[356260248,1742151032323,-27088.40672516,0.0001,2]
[356260534,1742151037768,-1289.31000243,0.0001,2]
[356260535,1742151037779,-4227.7,0.0001,2]
[356260536,1742151037823,-320.14840894,0.0001,2]
[356260537,1742151037835,-411.93182001,0.0001,2]
[356260538,1742151037846,-18135.68698298,0.0001,2]
[356260539,1742151037879,-755.92999996,0.0001,2]
[356260540,1742151037891,-627.31252894,0.0001,2]
[356260541,1742151037903,-856.6335725,0.0001,2]
[356260569,1742151040060,-2148.2701255,0.0001,2]
[356260570,1742151040071,-629.23687052,0.0001,2]